bitfinex-derivatives/quotes_BTCF0:USTF0_20250209
["timestamp","ask_amount","ask_price","bid_price","bid_amount"]
[1739144075005,0.00156052,96157.0,96154.0,0.65625577]
[1739144076212,0.00156052,96157.0,96154.0,0.65725577]
[1739144076707,0.00156052,96157.0,96154.0,0.65625577]
[1739144076904,0.00156052,96157.0,96154.0,0.65525577]
[1739144077309,0.00156052,96157.0,96154.0,0.65625577]
[1739144077910,0.00156052,96157.0,96154.0,0.65525577]
[1739144086012,0.18524339,96172.0,96154.0,0.44728737]
[1739144086316,0.2078947,96189.0,96184.0,0.2079035]
[1739144086514,0.2078947,96189.0,96184.0,0.5687035]
[1739144086917,0.24806821,96188.0,96187.0,0.2078971]
[1739144088912,0.25106821,96188.0,96187.0,0.2088971]
[1739144089114,0.25806821,96188.0,96187.0,0.2098971]
[1739144089622,0.25806821,96188.0,96187.0,0.2088971]
[1739144089821,0.25806821,96188.0,96187.0,0.2098971]
[1739144090616,0.25806821,96188.0,96187.0,0.22025175]
[1739144091115,0.01,96188.0,96187.0,0.22025175]
[1739144092813,0.2178949,96188.0,96187.0,0.22025175]
[1739144093728,0.01,96188.0,96187.0,0.22025175]
[1739144104127,0.01,96188.0,96187.0,0.30441175]
[1739144106635,0.01,96188.0,96187.0,0.66521175]
[1739144111027,0.01,96188.0,96187.0,0.58105175]
[1739144111340,0.01,96188.0,96187.0,0.002]
[1739144111536,0.01,96188.0,96178.0,0.08187763]
[1739144111537,0.2079121,96181.0,96178.0,0.00015599]
[1739144111731,1.5672,96180.0,96178.0,0.00015599]
[1739144112240,1.7751143,96180.0,96178.0,0.00015599]
[1739144113040,1.7801143,96180.0,96178.0,0.00015599]
[1739144114531,1.7841143,96180.0,96178.0,0.00015599]
[1739144116442,0.219,96179.0,96178.0,0.00015599]
[1739144117642,0.228,96179.0,96178.0,0.00015599]
[1739144118050,0.27856363,96179.0,96178.0,0.00015599]
[1739144118739,0.63936363,96179.0,96178.0,0.00015599]
[1739144120532,0.27856363,96179.0,96178.0,0.20807249]
[1739144122347,0.009,96179.0,96178.0,0.20807249]
[1739144136157,0.219,96190.0,96178.0,0.00015599]
[1739144136364,0.219,96190.0,96189.0,0.2078927]
[1739144137256,0.228,96190.0,96189.0,0.2078927]
[1739144138866,0.227,96190.0,96189.0,0.2088927]
[1739144139263,0.223,96190.0,96189.0,0.2098927]
[1739144140071,0.004,96190.0,96189.0,0.2098927]
[1739144143169,0.00015599,96197.0,96196.0,0.2078776]
[1739144143474,1.50015599,96197.0,96196.0,0.2078776]
[1739144144266,0.00015599,96197.0,96196.0,0.2078776]
[1739144144662,1.50015599,96197.0,96196.0,0.2078776]
[1739144146262,1.50015599,96197.0,96196.0,0.2088776]
[1739144147373,1.50015599,96197.0,96196.0,0.2098776]
[1739144148263,1.70803149,96197.0,96196.0,0.2098776]
[1739144148465,1.70803149,96197.0,96196.0,0.002]
[1739144148973,0.2078971,96187.0,96183.0,0.2079052]
[1739144149276,0.2078971,96187.0,96178.0,0.20807039]
[1739144149575,1.7078971,96187.0,96178.0,0.20807039]
[1739144150175,1.7078971,96187.0,96180.0,0.28966787]
[1739144150176,0.2079079,96182.0,96180.0,0.28966787]
[1739144150472,0.2079079,96182.0,96180.0,0.2079109]
[1739144150975,0.2079034,96185.0,96184.0,0.2078992]
[1739144151177,1.50176,96187.0,96186.0,0.2078992]
[1739144151376,1.5,96187.0,96186.0,0.2078992]
[1739144152276,1.7078971,96187.0,96186.0,0.2078992]
[1739144153468,1.7088971,96187.0,96186.0,0.2088992]
[1739144153973,1.7108971,96187.0,96186.0,0.2098992]
[1739144154577,0.2108971,96187.0,96186.0,0.2098992]
[1739144154772,0.003,96187.0,96186.0,0.2098992]
[1739144160577,1.7108971,96187.0,96186.0,0.2098992]
[1739144162974,1.7108971,96187.0,96186.0,0.002]
[1739144179388,1.76145669,96187.0,96186.0,0.002]
[1739144188105,1.76145669,96187.0,96186.0,0.2098992]
[1739144194010,2.12225669,96187.0,96186.0,0.2098992]
[1739144195994,0.41435959,96187.0,96186.0,0.2098992]
[1739144196599,0.05355959,96187.0,96186.0,0.2098992]
[1739144199599,0.02637111,96187.0,96186.0,0.2098992]
[1739144199816,0.02510037,96192.0,96191.0,0.2078884]
[1739144200110,0.02510037,96192.0,96191.0,0.5686884]
[1739144200901,0.02610037,96192.0,96191.0,0.5696884]
[1739144201997,0.02610037,96192.0,96191.0,0.5706884]
[1739144202612,0.001,96192.0,96191.0,0.5706884]
[1739144205115,0.001,96192.0,96191.0,0.9314884]
[1739144206409,0.001,96192.0,96191.0,0.94189127]
[1739144209717,0.00015599,96197.0,96196.0,0.2078776]
[1739144210029,0.219,96220.0,96196.0,0.2078776]
[1739144210322,0.219,96232.0,96220.0,0.2078258]
[1739144210506,1.5618,96221.0,96220.0,0.2078258]
[1739144211622,1.5618,96221.0,96220.0,0.16382579]
[1739144212127,1.5618,96221.0,96220.0,0.16482579]
[1739144213323,1.5618,96221.0,96220.0,0.16582579]
[1739144214215,0.0618,96221.0,96220.0,0.16582579]
[1739144214415,0.3608,96226.0,96220.0,0.002]
[1739144214618,0.3608,96226.0,96223.0,0.2078186]
[1739144215212,0.3608,96226.0,96224.0,0.2078167]
[1739144215419,0.2078097,96228.0,96226.0,0.2078123]
[1739144215619,0.00015589,96230.0,96220.0,0.01236921]
[1739144215620,0.00015589,96230.0,96229.0,0.2078063]
[1739144216621,0.00015589,96230.0,96229.0,0.16380629]
[1739144218121,0.20796009,96230.0,96229.0,0.16480629]
[1739144219418,0.20796009,96230.0,96229.0,0.16580629]
[1739144222031,0.20796009,96230.0,96229.0,0.002]
[1739144222222,0.56876009,96230.0,96229.0,0.002]
[1739144225730,0.20796009,96230.0,96229.0,0.002]
[1739144225928,0.56876009,96230.0,96229.0,0.002]
[1739144228125,0.56876009,96230.0,96229.0,0.2098063]
[1739144228631,2.06876009,96230.0,96229.0,0.2098063]
[1739144231428,2.06876009,96230.0,96229.0,0.002]
[1739144237733,0.56876009,96230.0,96229.0,0.002]
[1739144238226,0.20796009,96230.0,96229.0,0.002]
[1739144242135,0.25849918,96230.0,96229.0,0.002]
[1739144251047,0.25849918,96230.0,96229.0,0.2098064]
[1739144251239,0.219,96234.0,96233.0,0.2077977]
[1739144252437,0.219,96234.0,96233.0,0.2087977]
[1739144252640,0.219,96234.0,96233.0,0.2097977]
[1739144256045,0.2077828,96240.0,96233.0,0.002]
[1739144256245,0.2077828,96240.0,96239.0,0.2077848]
[1739144256749,0.2077828,96240.0,96239.0,0.3317848]
[1739144258653,0.2077828,96240.0,96239.0,0.3327848]
[1739144258847,0.2077828,96240.0,96239.0,0.2715848]
[1739144259444,0.2077828,96240.0,96239.0,0.2725848]
[1739144261252,0.2077828,96240.0,96239.0,0.0648]
[1739144261453,0.2077828,96240.0,96239.0,0.002]
[1739144262152,0.2077828,96240.0,96239.0,0.2097848]
[1739144281058,0.00015506,96243.0,96239.0,0.002]
[1739144281258,0.00015506,96243.0,96242.0,0.2077783]
[1739144283077,0.00015506,96243.0,96242.0,0.2087783]
[1739144283864,0.00015506,96243.0,96242.0,0.2097783]
[1739144284869,1.50015506,96243.0,96242.0,0.2097783]
[1739144285866,1.55068318,96243.0,96242.0,0.2097783]
[1739144286971,1.75845928,96243.0,96242.0,0.2097783]
[1739144288762,0.05068318,96243.0,96242.0,0.2097783]
[1739144289471,0.05068318,96243.0,96242.0,0.5705783]
[1739144290366,0.05068318,96243.0,96242.0,0.5695783]
[1739144290569,0.05068318,96243.0,96242.0,0.5705783]
[1739144291264,0.21805991,96255.0,96254.0,0.2077524]
[1739144291460,0.21805991,96255.0,96254.0,0.2905124]
[1739144292669,0.21805991,96255.0,96254.0,0.2915124]
[1739144294178,0.21805991,96255.0,96254.0,0.2925124]
[1739144294878,0.21805991,96255.0,96254.0,0.30296296]
[1739144295260,0.1188,96268.0,96254.0,0.11084522]
[1739144295465,0.0604,96274.0,96261.0,0.3608]
[1739144295770,0.0604,96274.0,96272.0,0.2077135]
[1739144296366,0.0604,96274.0,96273.0,0.3608]
[1739144297573,0.0568,96288.0,96276.0,0.2077029]
[1739144297766,1.5596,96287.0,96278.0,0.12428936]
[1739144299083,1.5596,96287.0,96278.0,0.12528936]
[1739144299685,1.5596,96287.0,96278.0,0.001]
[1739144299686,0.2076934,96282.0,96278.0,0.001]
[1739144300173,0.0612,96281.0,96278.0,0.001]
[1739144300769,0.0612,96281.0,96278.0,0.002]
[1739144302375,0.0569,96286.0,96278.0,0.002]
[1739144302769,0.06036,96287.0,96285.0,0.2076849]
[1739144303077,0.06036,96287.0,96283.0,0.3608]
[1739144303078,0.00076,96293.0,96292.0,0.2076704]
[1739144303381,0.1,96300.0,96295.0,0.2076633]
[1739144303680,0.1,96300.0,96299.0,0.3608]
[1739144305482,0.1,96300.0,96299.0,0.3618]
[1739144305984,0.1,96300.0,96299.0,0.3628]
[1739144307276,0.1,96300.0,96299.0,0.5704553]
[1739144307678,1.6,96300.0,96299.0,0.5704553]
[1739144309173,0.1,96300.0,96299.0,0.5704553]
[1739144309882,1.6,96300.0,96299.0,0.5704553]
[1739144310083,0.10004598,96300.0,96299.0,0.5704553]
[1739144311372,0.10004598,96300.0,96299.0,0.3628]
[1739144311578,0.10004598,96300.0,96299.0,0.002]
[1739144311778,0.15614598,96300.0,96299.0,0.002]
[1739144312178,1.65614598,96300.0,96299.0,0.002]
[1739144318780,0.15614598,96300.0,96299.0,0.3628]
[1739144319180,0.10004598,96300.0,96299.0,0.3628]
[1739144321180,0.10004598,96300.0,96299.0,0.3618]
[1739144321386,0.10004598,96300.0,96299.0,0.3608]
[1739144321687,0.10004598,96300.0,96299.0,0.3618]
[1739144323985,0.10004598,96300.0,96299.0,0.001]
[1739144325492,0.15444598,96300.0,96299.0,0.001]
[1739144325685,1.65444598,96300.0,96299.0,0.001]
[1739144326591,1.65444598,96300.0,96292.0,0.1864121]
[1739144326592,0.2076683,96293.0,96292.0,0.1864121]
[1739144326787,0.5684683,96293.0,96292.0,0.0979121]
[1739144327186,2.0684683,96293.0,96292.0,0.0979121]
[1739144329691,0.2076877,96284.0,96283.0,0.01060297]
[1739144332198,0.2076877,96284.0,96283.0,0.00015581]
[1739144332605,0.2076752,96290.0,96287.0,0.2076796]
[1739144332793,0.207678,96289.0,96287.0,0.2076796]
[1739144333692,0.2076877,96284.0,96283.0,0.00015581]
[1739144335293,0.2086877,96284.0,96283.0,0.00015581]
[1739144337096,0.001,96284.0,96283.0,0.00015581]
[1739144337499,0.001,96284.0,96283.0,0.11025581]
[1739144338497,0.2076688,96293.0,96284.0,0.2076877]
[1739144338702,0.2076688,96293.0,96283.0,0.23454517]
[1739144339102,0.2076688,96293.0,96291.0,0.2076715]
[1739144340506,0.15444598,96300.0,96291.0,0.2076715]
[1739144340507,0.4266566,96299.0,96298.0,0.2076575]
[1739144341607,0.4276566,96299.0,96298.0,0.2076575]
[1739144341805,0.2076665,96294.0,96293.0,0.2076665]
[1739144342507,1.7076665,96294.0,96293.0,0.2076665]
[1739144342995,0.2086665,96294.0,96293.0,0.2076665]
[1739144344010,0.001,96294.0,96293.0,0.2076665]
[1739144358612,0.001,96294.0,96293.0,0.5684665]
[1739144361918,0.001,96294.0,96293.0,0.2076665]
[1739144362116,0.001,96294.0,96293.0,0.5684665]
[1739144362510,0.001,96294.0,96293.0,0.2076665]
[1739144362711,0.001,96294.0,96293.0,0.5684665]
[1739144362910,0.001,96294.0,96293.0,0.2076665]
[1739144363217,0.001,96294.0,96293.0,0.5684665]
[1739144365221,0.10004598,96300.0,96299.0,0.2076554]
[1739144365415,0.06523537,96300.0,96299.0,0.2076554]
[1739144366315,0.06623537,96300.0,96299.0,0.2086554]
[1739144367421,0.1117,96326.0,96319.0,0.2076122]
[1739144367627,0.1658,96326.0,96319.0,0.2076122]
[1739144368420,1.50155776,96320.0,96319.0,0.2076122]
[1739144368718,1.50155776,96320.0,96319.0,0.2086122]
[1739144369122,1.50155776,96320.0,96319.0,0.2096122]
[1739144372127,0.00155776,96320.0,96319.0,0.2096122]
[1739144372618,1.5,96336.0,96335.0,0.2075778]
[1739144373626,0.1644,96337.0,96335.0,0.2075778]
[1739144374916,0.1644,96337.0,96335.0,0.2085778]
[1739144375317,0.1644,96337.0,96335.0,0.2095778]
[1739144375927,0.1644,96337.0,96335.0,0.21984681]
[1739144376427,0.1644,96337.0,96335.0,0.01226901]
[1739144376630,0.2075756,96336.0,96335.0,0.01226901]
[1739144377429,1.7075756,96336.0,96335.0,0.01226901]
[1739144381028,0.2076187,96316.0,96312.0,0.2076266]
[1739144381226,0.2076187,96316.0,96314.0,0.2076226]
[1739144381524,0.2076187,96316.0,96315.0,0.37283602]
[1739144381728,0.2076187,96316.0,96315.0,0.01203602]
[1739144381913,0.5684187,96316.0,96315.0,0.01203602]
[1739144382318,0.5684187,96316.0,96315.0,0.01403602]
[1739144386937,0.2076187,96316.0,96315.0,0.01403602]
[1739144387122,0.2076187,96316.0,96315.0,0.01247878]
[1739144387324,0.2076187,96316.0,96315.0,0.002]
[1739144387927,0.2076295,96311.0,96310.0,0.00015581]
[1739144388121,1.7076295,96311.0,96310.0,0.00015581]
[1739144389129,1.7076295,96311.0,96310.0,0.20878751]
[1739144392849,0.2076295,96311.0,96310.0,0.20878751]
[1739144394935,1.7076295,96311.0,96310.0,0.20878751]
[1739144398745,0.3608,96340.0,96310.0,0.00115581]
[1739144398963,0.2075993,96326.0,96325.0,0.2075959]
[1739144399259,1.5,96330.0,96329.0,0.2075907]
[1739144400759,1.5,96330.0,96329.0,0.2598907]
[1739144401559,1.501,96330.0,96329.0,0.2608907]
[1739144402849,1.501,96330.0,96329.0,0.2720104]
[1739144404254,1.501,96330.0,96329.0,0.3260104]
[1739144404454,0.0015573,96350.0,96329.0,0.1184197]
[1739144404762,0.0015573,96350.0,96346.0,0.2075478]
[1739144404763,0.207553,96347.0,96346.0,0.2075478]
[1739144405062,1.707553,96347.0,96346.0,0.2075478]
[1739144405861,1.5,96347.0,96337.0,0.00015572]
[1739144406063,0.2075562,96345.0,96337.0,0.00015572]
[1739144406266,0.2075644,96342.0,96341.0,0.2075642]
[1739144406564,0.2075565,96345.0,96344.0,0.2075581]
[1739144407155,1.7075565,96345.0,96344.0,0.2075581]
[1739144407959,1.7075565,96345.0,96344.0,0.2085581]
[1739144409759,1.7075565,96345.0,96344.0,0.2095581]
[1739144411058,1.5,96345.0,96344.0,0.2095581]
[1739144415773,1.7075562,96345.0,96344.0,0.2095581]
[1739144420176,0.2075562,96345.0,96344.0,0.2095581]
[1739144438688,0.0015573,96350.0,96349.0,0.2075476]
[1739144439794,0.0015573,96350.0,96349.0,0.2085476]
[1739144441087,0.0015573,96350.0,96349.0,0.2095476]
[1739144441784,0.0015573,96350.0,96349.0,0.2085476]
[1739144441981,0.0015573,96350.0,96349.0,0.2095476]
[1739144442188,1.5,96359.0,96349.0,0.6628]
[1739144442388,0.3608,96395.0,96358.0,0.3608]
[1739144442599,0.27902511,96390.0,96379.0,0.12428936]
[1739144442792,0.27902511,96390.0,96389.0,0.2074615]
[1739144443294,0.22564438,96390.0,96389.0,0.2074615]
[1739144443996,0.01817812,96390.0,96389.0,0.21878475]
[1739144444199,0.01817812,96390.0,96389.0,0.57958475]
[1739144445092,0.30824043,96395.0,96394.0,0.2074507]
[1739144445396,0.30824043,96395.0,96394.0,0.2893307]
[1739144446497,0.30824043,96395.0,96394.0,0.2903307]
[1739144447097,1.50076,96399.0,96398.0,0.2074421]
[1739144447293,0.1,96400.0,96394.0,0.08388]
[1739144447489,0.2074472,96396.0,96394.0,0.08388]
[1739144447693,1.5,96395.0,96394.0,0.08388]
[1739144448402,1.5,96395.0,96394.0,0.08288]
[1739144449489,1.5,96395.0,96394.0,0.08188]
[1739144449693,1.5,96395.0,96394.0,0.08288]
[1739144450302,0.1,96400.0,96395.0,0.2074486]
[1739144450501,0.1,96400.0,96399.0,0.3608]
[1739144450907,0.3608,96429.0,96399.0,0.3608]
[1739144451110,0.374279,96428.0,96419.0,0.12428936]
[1739144451295,1.5,96427.0,96419.0,0.12428936]
[1739144451494,1.5,96427.0,96419.0,0.33168486]
[1739144451801,1.7073803,96427.0,96420.0,0.2073935]
[1739144452396,0.3608,96421.0,96419.0,0.001]
[1739144452604,0.2073948,96420.0,96419.0,0.001]
[1739144453109,0.2074061,96415.0,96408.0,0.207419]
[1739144453300,0.3608,96409.0,96408.0,0.2074206]
[1739144453606,0.2074061,96415.0,96411.0,0.2074132]
[1739144453915,0.2074061,96415.0,96412.0,0.2074111]
[1739144454400,0.3608,96421.0,96406.0,0.3608]
[1739144454595,0.3608,96421.0,96415.0,0.2074035]
[1739144454596,0.2073955,96420.0,96415.0,0.2074035]
[1739144455401,0.2073955,96420.0,96416.0,0.207402]
[1739144455708,0.2073955,96420.0,96419.0,0.001]
[1739144456406,0.2073955,96420.0,96416.0,0.207402]
[1739144456603,0.3608,96421.0,96415.0,0.001]
[1739144456795,0.2073846,96425.0,96415.0,0.3618]
[1739144457002,1.5,96424.0,96422.0,0.2073896]
[1739144458307,1.5,96424.0,96422.0,0.2083896]
[1739144459100,1.5,96424.0,96422.0,0.2093896]
[1739144460695,1.5,96424.0,96422.0,0.21970136]
[1739144461105,0.2073924,96422.0,96404.0,0.20758322]
[1739144461422,0.2074265,96406.0,96404.0,0.20758322]
[1739144461607,0.1087,96405.0,96404.0,0.20758322]
[1739144462211,1.6087,96405.0,96404.0,0.2180379]
[1739144462712,1.6087,96405.0,96404.0,0.2190379]
[1739144462913,1.6087,96405.0,96404.0,0.2200379]
[1739144463713,1.6097,96405.0,96404.0,0.0126103]
[1739144464515,1.9705,96405.0,96404.0,0.0126103]
[1739144465008,1.6097,96405.0,96404.0,0.0126103]
[1739144467008,0.1097,96405.0,96404.0,0.0126103]
[1739144467610,1.6097,96405.0,96404.0,0.0126103]
[1739144468109,0.001,96405.0,96404.0,0.0126103]
[1739144468924,0.2084271,96405.0,96404.0,0.0126103]
[1739144470002,1.7084271,96405.0,96404.0,0.0126103]
[1739144471519,0.20744,96399.0,96398.0,0.00155606]
[1739144472119,0.27064,96399.0,96398.0,0.00155606]
[1739144472416,0.26064,96399.0,96398.0,0.00155606]
[1739144473117,1.76164,96399.0,96398.0,0.00255606]
[1739144473918,1.76364,96399.0,96398.0,0.00355606]
[1739144476410,1.76364,96399.0,96398.0,0.002]
[1739144478617,1.76364,96399.0,96389.0,0.00015562]
[1739144478618,0.2074593,96390.0,96389.0,0.00015562]
[1739144478915,0.5682593,96390.0,96389.0,0.00015562]
[1739144479322,2.0682593,96390.0,96389.0,0.00015562]
[1739144479821,2.0702593,96390.0,96389.0,0.00015562]
[1739144480316,2.0732593,96390.0,96389.0,0.00015562]
[1739144487124,0.5732593,96390.0,96389.0,0.00015562]
[1739144491428,2.0732593,96390.0,96389.0,0.00015562]
[1739144495729,0.5732593,96390.0,96389.0,0.00015562]
[1739144497518,2.0732593,96390.0,96389.0,0.00015562]
[1739144500230,2.0732593,96390.0,96389.0,0.20761712]
[1739144500231,0.005,96390.0,96389.0,0.20761712]
[1739144502435,0.219,96397.0,96389.0,0.00015562]
[1739144502629,0.219,96397.0,96396.0,0.5682464]
[1739144502826,0.2074389,96400.0,96398.0,0.2074408]
[1739144505236,1.50076,96407.0,96406.0,0.2074249]
[1739144505435,1.5,96407.0,96406.0,0.2074249]
[1739144506728,1.5,96407.0,96406.0,0.2084249]
[1739144507444,1.5,96407.0,96406.0,0.2094249]
[1739144510124,1.7074228,96407.0,96406.0,0.2094249]
[1739144510325,1.7074228,96407.0,96406.0,0.21980012]
[1739144512736,1.5,96407.0,96406.0,0.58060012]
[1739144512928,4.429e-05,96423.0,96406.0,0.37317522]
[1739144513128,4.429e-05,96423.0,96420.0,0.207393]
[1739144513337,1.5,96422.0,96420.0,0.207393]
[1739144513531,1.5,96422.0,96415.0,0.3608]
[1739144514530,1.5,96422.0,96420.0,0.001]
[1739144514841,1.5,96422.0,96421.0,0.2073926]
[1739144515040,1.501,96422.0,96421.0,0.2073926]
[1739144515525,1.5,96422.0,96421.0,0.2073926]
[1739144515728,1.501,96422.0,96421.0,0.2073926]
[1739144516134,1.501,96422.0,96421.0,0.2083926]
[1739144517442,1.501,96422.0,96421.0,0.2093926]
[1739144518033,1.501,96422.0,96421.0,0.21971189]
[1739144527244,0.001,96422.0,96421.0,0.21971189]
[1739144528852,1.501,96422.0,96421.0,0.21971189]
[1739144530946,1.6273,96422.0,96421.0,0.21971189]
[1739144532240,1.6273,96422.0,96421.0,0.01231929]
[1739144532447,1.6273,96422.0,96411.0,0.18411337]
[1739144532647,0.3608,96412.0,96406.0,0.24604536]
[1739144532847,0.3608,96410.0,96406.0,0.24604536]
[1739144533057,0.5682163,96410.0,96406.0,0.24604536]
[1739144533452,2.0682163,96410.0,96406.0,0.24604536]
[1739144534656,2.0682163,96410.0,96409.0,0.00115562]
[1739144534849,2.0682163,96410.0,96409.0,0.00215562]
[1739144535051,2.0682163,96410.0,96409.0,0.00115562]
[1739144535262,2.0702163,96410.0,96409.0,0.00215562]
[1739144537060,0.2074275,96405.0,96400.0,0.00155597]
[1739144537264,0.3608,96401.0,96400.0,0.00155597]
[1739144538257,0.3608,96401.0,96400.0,0.00255597]
[1739144538658,0.3608,96401.0,96400.0,0.00155597]
[1739144538853,0.3628,96401.0,96400.0,0.00255597]
[1739144539249,0.3628,96401.0,96400.0,0.00355597]
[1739144539960,0.3628,96401.0,96400.0,0.00255597]
[1739144540166,0.3648,96401.0,96400.0,0.00355597]
[1739144545660,0.6117357,96401.0,96400.0,0.00355597]
[1739144545960,0.207455,96392.0,96391.0,0.00015562]
[1739144546161,0.207455,96392.0,96391.0,0.01076908]
[1739144546362,0.207455,96392.0,96391.0,0.00015562]
[1739144546869,0.207455,96392.0,96391.0,0.20761282]
[1739144547068,1.709455,96392.0,96391.0,0.20761282]
[1739144547365,1.713455,96392.0,96391.0,0.20761282]
[1739144549560,2.074255,96392.0,96391.0,0.01033044]
[1739144549961,2.074255,96392.0,96391.0,0.00015562]
[1739144550464,0.2074684,96387.0,96386.0,0.2074676]
[1739144551763,1.86760001,96392.0,96377.0,0.00015562]
[1739144551968,1.86760001,96392.0,96379.0,0.2074817]
[1739144551969,0.2074766,96382.0,96379.0,0.2074817]
[1739144552271,0.2074766,96382.0,96381.0,0.2074787]
[1739144553064,0.3608,96383.0,96381.0,0.2074787]
[1739144554271,0.001,96382.0,96381.0,0.2074787]
[1739144554774,0.3618,96383.0,96381.0,0.2074787]
[1739144555170,0.001,96383.0,96381.0,0.2074787]
[1739144556765,0.001,96382.0,96379.0,0.207483]
[1739144556963,0.001,96382.0,96381.0,0.2074787]
[1739144557364,0.001,96383.0,96379.0,0.2074826]
[1739144557564,0.001,96383.0,96382.0,0.2074765]
[1739144557972,0.00015562,96390.0,96389.0,0.2074615]
[1739144560064,0.00315562,96390.0,96389.0,0.2074615]
[1739144560865,0.00715562,96390.0,96389.0,0.2074615]
[1739144565472,0.00715562,96390.0,96389.0,0.21764204]
[1739144570683,0.3608,96420.0,96400.0,0.2074378]
[1739144570879,0.3608,96420.0,96389.0,0.31018054]
[1739144570880,0.3608,96420.0,96410.0,0.12428936]
[1739144571184,0.3608,96420.0,96419.0,0.2073969]
[1739144571567,1.8608,96420.0,96419.0,0.2073969]
[1739144571876,1.8648,96420.0,96419.0,0.2073969]
[1739144572082,1.8678,96420.0,96419.0,0.2073969]
[1739144572381,1.8638,96420.0,96419.0,0.2073969]
[1739144572579,1.8668,96420.0,96419.0,0.2083969]
[1739144572875,1.506,96420.0,96419.0,0.2093969]
[1739144573270,0.00015562,96429.0,96419.0,0.002]
[1739144573468,0.00015562,96429.0,96428.0,0.2073776]
[1739144573878,0.00015562,96429.0,96428.0,0.2469776]
[1739144575386,0.00015562,96429.0,96428.0,0.2479776]
[1739144575880,0.00015562,96429.0,96428.0,0.2489776]
[1739144581079,0.00015562,96429.0,96428.0,0.2093776]
[1739144581777,0.00015562,96429.0,96428.0,0.002]
[1739144582175,1.50015562,96429.0,96428.0,0.002]
[1739144583287,0.2074141,96411.0,96410.0,0.00015562]
[1739144583585,0.5682141,96411.0,96410.0,0.00015562]
[1739144585078,2.0682141,96411.0,96410.0,0.00015562]
[1739144585482,1.8608,96411.0,96410.0,0.00015562]
[1739144586094,1.5,96411.0,96410.0,0.00015562]
[1739144593793,1.5,96411.0,96410.0,0.20757192]
[1739144596899,0.036,96416.0,96410.0,0.00015562]
[1739144597099,0.3608,96422.0,96421.0,0.2073926]
[1739144597900,0.5681905,96422.0,96421.0,0.2073926]
[1739144599395,0.3608,96422.0,96421.0,0.2073926]
[1739144599597,0.00015562,96429.0,96412.0,0.20544936]
[1739144599802,0.2073802,96427.0,96426.0,0.2073805]
[1739144601700,0.2073802,96427.0,96426.0,0.2083805]
[1739144602004,0.2073802,96427.0,96426.0,0.2093805]
[1739144603599,0.2073802,96427.0,96426.0,0.21959876]
[1739144603803,0.00015562,96429.0,96428.0,0.2073776]
[1739144604804,0.00015562,96429.0,96428.0,0.2083776]
[1739144605106,0.00015562,96429.0,96428.0,0.2093776]
[1739144605909,1.50015562,96429.0,96428.0,0.2093776]
[1739144613606,1.50020186,96429.0,96428.0,0.2093776]
[1739144614207,0.00020186,96429.0,96428.0,0.5701776]
[1739144615909,0.2073521,96440.0,96439.0,0.207351]
[1739144616303,1.7073521,96440.0,96439.0,0.207351]
[1739144617120,1.7073521,96440.0,96439.0,0.208351]
[1739144618413,1.7073521,96440.0,96439.0,0.209351]
[1739144618720,1.7073521,96440.0,96439.0,0.21991348]
[1739144633932,1.7073521,96440.0,96439.0,0.01256248]
[1739144634326,1.7073521,96440.0,96439.0,0.002]
[1739144634327,2.0681521,96440.0,96439.0,0.002]
[1739144636027,2.11858284,96440.0,96439.0,0.002]
[1739144640037,2.0681521,96440.0,96439.0,0.002]
[1739144641233,1.7073521,96440.0,96439.0,0.002]
[1739144641544,2.0681521,96440.0,96439.0,0.002]
[1739144647141,2.11858342,96440.0,96439.0,0.002]
[1739144659154,0.2073711,96431.0,96430.0,0.00015554]
[1739144660144,0.2073711,96431.0,96430.0,0.00115554]
[1739144660550,0.2073711,96431.0,96430.0,0.20952884]
[1739144661050,0.2073711,96431.0,96420.0,0.18452003]
[1739144661051,0.6008,96431.0,96420.0,0.18452003]
[1739144661352,0.5681926,96421.0,96420.0,0.18452003]
[1739144661547,2.0681926,96421.0,96420.0,0.18452003]
[1739144662145,1.8608,96421.0,96417.0,0.39192023]
[1739144662348,0.2073991,96418.0,96417.0,0.39192023]
[1739144663343,0.2073991,96418.0,96417.0,0.40222268]
[1739144663544,0.2083991,96418.0,96417.0,0.40222268]
[1739144666156,0.2083991,96418.0,96417.0,0.21770265]
[1739144671257,0.2083991,96418.0,96417.0,0.01030245]
[1739144671450,0.001,96418.0,96411.0,0.20756754]
[1739144671650,0.207412,96412.0,96411.0,0.20756754]
[1739144673357,0.568212,96412.0,96411.0,0.20756754]
[1739144674147,0.568212,96412.0,96411.0,0.21809211]
[1739144674447,0.568212,96412.0,96411.0,0.01068011]
[1739144674652,0.568212,96412.0,96411.0,0.00015554]
[1739144680256,0.578212,96412.0,96411.0,1e-08]
[1739144680760,2.078212,96412.0,96411.0,1e-08]
[1739144681356,0.2074507,96394.0,96387.0,0.21862003]
[1739144681558,0.2074593,96390.0,96387.0,0.21862003]
[1739144682064,1.7074593,96390.0,96387.0,0.21862003]
[1739144682260,1.5,96390.0,96387.0,0.21862003]
[1739144682463,0.2074636,96388.0,96387.0,0.21862003]
[1739144683055,0.2074636,96388.0,96387.0,0.22916765]
[1739144683256,0.2074636,96388.0,96387.0,0.21862003]
[1739144684166,0.2074636,96388.0,96387.0,0.21962003]
[1739144684763,0.2074636,96388.0,96387.0,0.22262003]
[1739144685364,0.2074636,96388.0,96387.0,0.0381]
[1739144685566,0.2074636,96388.0,96387.0,0.0371]
[1739144685765,0.2074636,96388.0,96387.0,0.0381]
[1739144703685,0.0518607,96398.0,96387.0,0.0381]
[1739144703686,0.2074149,96411.0,96389.0,0.2074615]
[1739144703975,0.3608,96416.0,96402.0,0.3608]
[1739144704166,0.3608,96416.0,96412.0,0.207412]
[1739144705481,0.20754605,96422.0,96412.0,0.568212]
[1739144705881,0.18919847,96413.0,96412.0,0.569212]
[1739144706380,0.003,96413.0,96412.0,0.569212]
[1739144706581,0.005,96413.0,96412.0,0.570212]
[1739144706784,0.005,96413.0,96412.0,0.58042253]
[1739144706980,0.002,96413.0,96412.0,0.57942253]
[1739144707286,0.005,96413.0,96412.0,0.57842253]
[1739144708785,0.002,96413.0,96412.0,0.57842253]
[1739144709091,0.005,96413.0,96412.0,0.57842253]
[1739144714984,0.005,96413.0,96412.0,0.37101053]
[1739144715684,1.505,96413.0,96412.0,0.37101053]
[1739144723090,1.505,96413.0,96412.0,0.01021053]
[1739144723287,1.505,96413.0,96403.0,0.42825562]